fUST/lending_fUST_20240502
["ID","MTS","AMOUNT","RATE_DAILY","PERIOD"]
[325217983,1714593062767,-646.75,0.00055068,120]
[325217984,1714593062777,-790.05,0.00055068,120]
[325217985,1714593062786,-500.0,0.00055068,120]
[325217986,1714593062795,-500.0,0.00055068,120]
[325217987,1714593062804,-399.351879,0.00055068,120]
[325217988,1714593062813,-500.0,0.00055068,120]
[325217989,1714593062825,-500.0,0.00055068,120]
[325217990,1714593062955,-512.6,0.00055068,120]
[325217991,1714593062964,-151.0,0.00055068,120]
[325217992,1714593062973,-500.0,0.00055068,120]
[325217993,1714593062983,-500.0,0.00055068,120]
[325217994,1714593062994,-500.0,0.00055068,120]
[325217995,1714593063004,-300.0,0.00055068,2]
[325217996,1714593063014,-623.92,0.00055068,120]
[325217997,1714593063023,-155.082013,0.00055068,120]
[325217998,1714593063034,-769.53,0.00055068,120]
[325217999,1714593063043,-155.082013,0.00055068,120]
[325218000,1714593063053,-500.0,0.00055068,120]
[325218001,1714593063062,-500.0,0.00055068,120]
[325218002,1714593063078,-500.0,0.00055068,120]
[325218003,1714593063093,-220.364079,0.00055068,120]
[325218004,1714593063103,-500.0,0.00055068,120]
[325218005,1714593063112,-1300.37,0.00055068,120]
[325218006,1714593063122,-1083.45,0.00055068,120]
[325218007,1714593063132,-474.04326759,0.00055068,120]
[325218008,1714593063142,-511.17,0.00055068,120]
[325218009,1714593063151,-500.0,0.00055068,120]
[325218010,1714593063160,-220.364079,0.00055068,120]
[325218011,1714593063170,-500.0,0.00055068,120]
[325218012,1714593063179,-515.08,0.00055068,120]
[325218013,1714593063189,-500.0,0.00055068,120]
[325218014,1714593063198,-500.0,0.00055068,120]
[325218015,1714593063208,-15563.73,0.00055068,120]
[325218016,1714593063217,-500.0,0.00055068,120]
[325218017,1714593063227,-500.0,0.00055068,120]
[325218018,1714593063239,-945.484392,0.00055068,120]
[325218019,1714593063249,-4919.23,0.00055068,120]
[325218020,1714593063259,-592.33,0.00055068,120]
[325218021,1714593063267,-500.0,0.00055068,120]
[325218022,1714593063277,-500.0,0.00055068,120]
[325218023,1714593063287,-945.484392,0.00055068,120]
[325218024,1714593063296,-175.798414,0.00055068,120]
[325218025,1714593063306,-3268.66,0.00055068,120]
[325218026,1714593063321,-500.0,0.00055068,120]
[325218027,1714593063331,-500.0,0.00055068,120]
[325218028,1714593063340,-175.798414,0.00055068,120]
[325218029,1714593063349,-500.0,0.00055068,120]
[325218030,1714593063359,-156.225468,0.00055068,120]
[325218031,1714593063370,-1592.82,0.00055068,30]
[325218032,1714593063379,-151.0,0.00055068,120]
[325218033,1714593063389,-156.225468,0.00055068,120]
[325218034,1714593063398,-500.0,0.00055068,120]
[325218035,1714593063407,-500.0,0.00055068,120]
[325218036,1714593063417,-873.13,0.00055068,120]
[325218037,1714593063426,-1224.42,0.00055068,120]
[325218038,1714593063436,-2416.17,0.00055068,120]
[325218039,1714593063445,-772.552586,0.00055068,120]
[325218040,1714593063454,-500.0,0.00055068,120]
[325218041,1714593063463,-1202.11,0.00055068,120]
[325218042,1714593063473,-772.552586,0.00055068,120]
[325218043,1714593063482,-772.552586,0.00055068,120]
[325218044,1714593063491,-300.0,0.00055068,7]
[325218045,1714593063502,-772.552586,0.00055068,120]
[325218046,1714593063512,-500.0,0.00055068,120]
[325218047,1714593063523,-1000.0,0.00055068,120]
[325218048,1714593063532,-1021.63,0.00055068,120]
[325218049,1714593063543,-500.0,0.00055068,120]
[325218050,1714593063554,-787.78,0.00055068,120]
[325218051,1714593063565,-2993.93,0.00055068,120]
[325218052,1714593063577,-500.0,0.00055068,120]
[325218053,1714593063587,-500.0,0.00055068,120]
[325218054,1714593063596,-500.0,0.00055068,120]
[325218055,1714593063605,-1034.59,0.00055068,120]
[325218056,1714593063614,-817.09,0.00055068,120]
[325218057,1714593063623,-500.0,0.00055068,120]
[325218058,1714593063632,-573.09157035,0.00055068,120]
[325218059,1714593063640,-501.11798054,0.00055068,120]
[325218060,1714593063650,-500.0,0.00055068,120]
[325218061,1714593063659,-500.0,0.00055068,120]
[325218062,1714593063668,-266.662145,0.00055068,120]
[325218063,1714593063677,-266.662145,0.00055068,120]
[325218064,1714593063687,-500.0,0.00055068,120]
[325218065,1714593063697,-500.0,0.00055068,120]
[325218066,1714593063706,-1098.49,0.00055068,120]
[325218067,1714593063715,-266.662145,0.00055068,120]
[325218068,1714593063724,-266.662145,0.00055068,120]
[325218069,1714593063734,-500.0,0.00055068,3]
[325218070,1714593063744,-511.17084469,0.00055068,120]
[325218071,1714593063753,-500.0,0.00055068,120]
[325218072,1714593063762,-500.0,0.00055068,120]
[325218073,1714593063773,-500.0,0.00055068,120]
[325218074,1714593063782,-2274.52,0.00055068,120]
[325218075,1714593063792,-500.0,0.00055068,120]
[325218076,1714593063802,-500.0,0.00055068,120]
[325218077,1714593063811,-500.0,0.00055068,120]
[325218078,1714593063825,-527.67,0.00055068,120]
[325218079,1714593063834,-500.0,0.00055068,120]
[325218080,1714593063843,-2156.03,0.00055068,120]
[325218081,1714593063852,-500.0,0.00055068,120]
[325218082,1714593063862,-545.43,0.00055068,120]
[325218083,1714593063871,-749.02,0.00055068,120]
[325218084,1714593063880,-412.279401,0.00055068,120]
[325218085,1714593063889,-412.279401,0.00055068,120]
[325218086,1714593063905,-842.19,0.00055068,120]
[325218087,1714593063914,-669.57,0.00055068,120]
[325218088,1714593063924,-412.279401,0.00055068,120]
[325218089,1714593063933,-412.279401,0.00055068,120]
[325218090,1714593063942,-151.0,0.00055068,120]
[325218091,1714593063951,-151.0,0.00055068,120]
[325218092,1714593063961,-500.0,0.00055068,120]
[325218093,1714593063971,-839.77,0.00055068,120]
[325218094,1714593063981,-500.0,0.00055068,120]
[325218095,1714593063990,-500.0,0.00055068,120]
[325218096,1714593064004,-211.665744,0.00055068,30]
[325218097,1714593064013,-211.665744,0.00055068,30]
[325218098,1714593064023,-1059.07,0.00055068,120]
[325218099,1714593064033,-1227.58,0.00055068,120]
[325218100,1714593064042,-211.09,0.00055606,35]
[325218101,1714593064052,-500.0,0.00055616,120]
[325218102,1714593064062,-500.0,0.00055616,120]
[325218103,1714593064075,-500.0,0.00055616,120]
[325218104,1714593064083,-799.19,0.00055616,120]
[325218105,1714593064092,-500.0,0.00055616,120]
[325218106,1714593064106,-500.0,0.00055616,120]
[325218107,1714593064122,-500.0,0.00055616,120]
[325218108,1714593064139,-500.0,0.00055616,120]
[325218109,1714593064151,-656.09,0.00055616,120]
[325218110,1714593064167,-539.57912611,0.00055616,120]
[325218111,1714593064181,-500.0,0.00055616,120]
[325218112,1714593064196,-600.0,0.00055616,120]
[325218113,1714593064213,-151.0,0.00055616,120]
[325218114,1714593064227,-929.28,0.00055616,120]
[325218115,1714593064241,-500.0,0.00055616,120]
[325218116,1714593064254,-500.0,0.00055616,120]
[325218117,1714593064269,-986.16,0.00055616,120]
[325218118,1714593064281,-932.13,0.00055616,120]
[325218119,1714593064293,-500.0,0.00055616,120]
[325218120,1714593064306,-500.0,0.00055616,120]
[325218121,1714593064324,-500.0,0.00055616,5]
[325218122,1714593064337,-635.3,0.00055616,120]
[325218123,1714593064352,-770.08,0.00055616,120]
[325218124,1714593064366,-646.37,0.00055616,120]
[325218125,1714593064377,-707.35,0.00055616,120]
[325218126,1714593064388,-504.3511606,0.00055616,120]
[325218127,1714593064401,-500.0,0.00055616,120]
[325218128,1714593064415,-500.0,0.00055616,120]
[325218129,1714593064428,-500.0,0.00055616,120]
[325218130,1714593064441,-811.41,0.00055616,2]
[325218131,1714593064456,-414.76892943,0.00055616,120]
[325218132,1714593064466,-500.0,0.00055616,120]
[325218133,1714593064479,-598.21,0.00055616,120]
[325218134,1714593064491,-500.0,0.00055616,120]
[325218135,1714593064503,-500.0,0.00055616,120]
[325218136,1714593064515,-500.0,0.00055616,120]
[325218137,1714593064527,-501.29,0.00055616,120]
[325218138,1714593064539,-500.0,0.00055616,120]
[325218139,1714593064550,-500.0,0.00055616,120]
[325218140,1714593064562,-685.02,0.00055616,120]
[325218141,1714593064580,-814.0,0.00055616,120]
[325218142,1714593064591,-405.47384013,0.00055616,120]
[325218143,1714593064604,-500.0,0.00055616,120]
[325218144,1714593064616,-500.0,0.00055616,120]
[325218145,1714593064628,-500.0,0.00055616,120]
[325218146,1714593064641,-500.0,0.00055616,120]
[325218147,1714593064653,-500.0,0.00055616,120]
[325218148,1714593064665,-500.0,0.00055616,30]
[325218149,1714593064677,-548.15,0.00055616,120]
[325218150,1714593064689,-627.76,0.00055616,120]
[325218151,1714593064702,-500.0,0.00055616,120]
[325218152,1714593064714,-265.365629,0.00055616,120]
[325218153,1714593064726,-500.0,0.00055616,120]
[325218154,1714593064738,-508.21,0.00055616,120]
[325218155,1714593064750,-763.31,0.00055616,120]
[325218156,1714593064762,-500.0,0.00055616,120]
[325218157,1714593064773,-573.07,0.00055616,120]
[325218158,1714593064786,-823.58,0.00055616,120]
[325218159,1714593064797,-151.0,0.00055616,120]
[325218160,1714593064809,-151.0,0.00055616,120]
[325218161,1714593064824,-507.32,0.00055616,120]
[325218162,1714593064837,-500.0,0.00055616,120]
[325218163,1714593064848,-500.0,0.00055616,120]
[325218164,1714593064861,-744.84,0.00055616,120]
[325218165,1714593064872,-502.26995536,0.00055616,120]
[325218166,1714593064884,-615.48,0.00055616,120]
[325218167,1714593064896,-674.97,0.00055616,120]
[325218168,1714593064909,-500.0,0.00055616,120]
[325218169,1714593064920,-157.756584,0.00055616,120]
[325218170,1714593064933,-779.28,0.00055616,120]
[325218171,1714593064944,-906.91,0.00055616,120]
[325218172,1714593064955,-500.0,0.00055616,120]
[325218173,1714593064967,-157.756584,0.00055616,120]
[325218174,1714593064978,-503.63624467,0.00055616,120]
[325218175,1714593064990,-506.71,0.00055616,120]
[325218176,1714593065006,-151.0,0.00055616,120]
[325218177,1714593065018,-500.0,0.00055616,120]
[325218178,1714593065031,-500.0,0.00055616,2]
[325218179,1714593065044,-1032.99,0.00055616,120]
[325218180,1714593065057,-500.0,0.00055616,120]
[325218181,1714593065079,-500.0,0.00055616,120]
[325218182,1714593065093,-500.0,0.00055616,120]
[325218183,1714593065106,-911.15,0.00055616,120]
[325218184,1714593065118,-500.0,0.00055616,120]
[325218185,1714593065130,-500.0,0.00055616,120]
[325218186,1714593065144,-1585.85,0.00055616,120]
[325218187,1714593065157,-500.0,0.00055616,2]
[325218188,1714593065169,-500.0,0.00055616,60]
[325218189,1714593065183,-775.81,0.00055616,120]
[325218190,1714593065195,-500.0,0.00055616,120]
[325218191,1714593065209,-758.18,0.00055616,120]
[325218192,1714593065222,-531.47569242,0.00055616,120]
[325218193,1714593065234,-238.303855,0.00055616,120]
[325218194,1714593065246,-500.0,0.00055616,120]
[325218195,1714593065260,-500.0,0.00055616,120]
[325218196,1714593065272,-500.0,0.00055616,120]
[325218197,1714593065285,-665.4,0.00055616,120]
[325218198,1714593065298,-802.71,0.00055616,120]
[325218199,1714593065310,-500.0,0.00055616,120]
[325218200,1714593065329,-566.46,0.00055616,120]
[325218201,1714593065341,-190.96848604,0.00055616,120]
[325218202,1714593065354,-944.27,0.00055616,120]
[325218203,1714593065366,-500.0,0.00055616,120]
[325218204,1714593065380,-639.76470525,0.00055616,120]
[325218205,1714593065393,-241.82251379,0.00055616,120]
[325218206,1714593065406,-881.93,0.00055616,120]
[325218207,1714593065419,-847.91,0.00055616,120]
[325218208,1714593065432,-324.3944814,0.00055616,120]
[325218209,1714593065444,-795.4,0.00055616,120]
[325218210,1714593065457,-151.0,0.00055616,120]
[325218211,1714593065470,-522.89,0.00055616,120]
[325218212,1714593065483,-974.05,0.00055616,120]
[325218213,1714593065496,-970.75,0.00055616,120]
[325218214,1714593065509,-538.66,0.00055616,120]
[325218215,1714593065521,-637.86599791,0.00055616,120]
[325218216,1714593065533,-500.0,0.00055616,120]
[325218217,1714593065545,-261.48939397,0.00055616,120]
[325218218,1714593065558,-737.33,0.00055616,120]
[325218219,1714593065574,-508.75,0.00055616,120]
[325218220,1714593065584,-1437.5,0.00055616,120]
[325218221,1714593065594,-999.27,0.00055616,120]
[325218222,1714593065603,-500.0,0.00055616,120]
[325218223,1714593065818,-500.0,0.00055616,120]
[325218224,1714593065834,-788.45,0.00055616,120]
[325218225,1714593065845,-502.22103698,0.00055616,120]
[325218226,1714593065855,-533.41,0.00055616,120]
[325218227,1714593065866,-988.92,0.00055616,120]
[325218228,1714593065880,-500.0,0.00055616,120]
[325218229,1714593065889,-2957.5,0.00055616,120]
[325218230,1714593065900,-155.09148202,0.00055616,120]
[325218231,1714593065915,-500.0,0.00055616,120]
[325218232,1714593065924,-702.321336,0.00055616,120]
[325218233,1714593065939,-2973.15,0.00055616,120]
[325218234,1714593065948,-702.321336,0.00055616,120]
[325218235,1714593065959,-501.87296289,0.00055616,120]
[325218236,1714593065968,-500.0,0.00055616,120]
[325218237,1714593065978,-637.17,0.00055616,120]
[325218238,1714593065990,-558.95,0.00055616,120]
[325218239,1714593066001,-500.0,0.00055616,120]
[325218240,1714593066010,-521.78,0.00055616,120]
[325218241,1714593066020,-500.0,0.00055616,120]
[325218242,1714593066031,-151.0,0.00055616,120]
[325218243,1714593066040,-152.344362,0.00055616,120]
[325218244,1714593066050,-500.0,0.00055616,120]
[325218245,1714593066060,-500.0,0.00055616,120]
[325218246,1714593066071,-1001.57,0.00055616,120]
[325218247,1714593066082,-500.0,0.00055616,120]
[325218248,1714593066092,-672.31,0.00055616,120]
[325218249,1714593066104,-506.22,0.00055616,120]
[325218250,1714593066114,-500.0,0.00055616,120]
[325218251,1714593066124,-500.0,0.00055616,120]
[325218252,1714593066133,-500.0,0.00055616,120]
[325218253,1714593066142,-500.0,0.00055616,120]
[325218254,1714593066151,-623.31,0.00055616,120]
[325218255,1714593066160,-500.0,0.00055616,120]
[325218256,1714593066170,-151.0,0.00055616,120]
[325218257,1714593066180,-500.0,0.00055616,120]
[325218258,1714593066189,-151.0,0.00055616,120]
[325218259,1714593066199,-1000.0,0.00055616,120]
[325218260,1714593066208,-500.0,0.00055616,120]
[325218261,1714593066218,-500.0,0.00055616,120]
[325218262,1714593066227,-500.0,0.00055616,120]
[325218263,1714593066237,-2973.1,0.00055616,120]
[325218264,1714593066246,-11101.42,0.00055616,120]
[325218265,1714593066256,-912.14,0.00055616,120]
[325218266,1714593066265,-500.0,0.00055616,120]
[325218267,1714593066275,-500.0,0.00055616,120]
[325218268,1714593066285,-500.0,0.00055616,120]
[325218269,1714593066295,-1030.03,0.00055616,120]
[325218270,1714593066305,-500.0,0.00055616,120]
[325218271,1714593066314,-500.0,0.00055616,120]
[325218272,1714593066328,-500.0,0.00055616,120]
[325218273,1714593066338,-870.89,0.00055616,120]
[325218274,1714593066348,-853.15,0.00055616,120]
[325218275,1714593066358,-593.6,0.00055616,120]
[325218276,1714593066368,-500.0,0.00055616,120]
[325218277,1714593066379,-500.0,0.00055616,120]
[325218278,1714593066390,-500.0,0.00055616,120]
[325218279,1714593066400,-500.0,0.00055616,120]
[325218280,1714593066410,-664.12,0.00055616,120]
[325218281,1714593066420,-880.22,0.00055616,120]
[325218282,1714593066429,-511.6,0.00055616,60]
[325218283,1714593066439,-500.0,0.00055616,120]
[325218284,1714593066448,-500.0,0.00055616,120]
[325218285,1714593066458,-7436.85,0.00055616,120]
[325218286,1714593066468,-174.29345129,0.00055616,120]
[325218287,1714593066479,-303.490742,0.00055616,120]
[325218288,1714593066489,-500.0,0.00055616,120]
[325218289,1714593066499,-500.0,0.00055616,120]
[325218290,1714593066508,-817.28,0.00055616,7]
[325218291,1714593066518,-500.0,0.00055616,120]
[325218292,1714593066528,-303.490742,0.00055616,120]
[325218293,1714593066537,-500.0,0.00055616,120]
[325218294,1714593066547,-165.130827,0.00055616,120]
[325218295,1714593066557,-425.386949,0.00055616,120]
[325218296,1714593066567,-165.130827,0.00055616,120]
[325218297,1714593066581,-425.386949,0.00055616,120]
[325218298,1714593066590,-1682.03,0.00055616,120]
[325218299,1714593066600,-500.0,0.00055616,120]
[325218300,1714593066610,-500.0,0.00055616,120]
[325218301,1714593066620,-1477.84,0.00055616,120]
[325218302,1714593066629,-151.0,0.00055616,120]
[325218303,1714593066640,-500.0,0.00055616,120]
[325218304,1714593066650,-151.0,0.00055616,120]
[325218305,1714593066659,-536.44409236,0.00055616,120]
[325218306,1714593066669,-1094.82,0.00055616,21]
[325218307,1714593066679,-1203.86,0.00055616,120]
[325218308,1714593066689,-2239.08,0.00055616,2]
[325218309,1714593066699,-1245.68,0.00055616,120]
[325218310,1714593066709,-500.0,0.00055616,120]
[325218311,1714593066719,-1003.0,0.00055616,120]
[325218312,1714593066729,-580.21,0.00055616,120]
[325218313,1714593066738,-453.53354,0.00055616,120]
[325218314,1714593066748,-312.760707,0.00055616,120]
[325218315,1714593066758,-500.0,0.00055616,120]
[325218316,1714593066768,-1918.13,0.00055616,120]
[325218317,1714593066777,-453.53354,0.00055616,120]
[325218318,1714593066787,-500.0,0.00055616,120]
[325218319,1714593066798,-500.0,0.00055616,120]
[325218320,1714593066807,-312.760707,0.00055616,120]
[325218321,1714593066823,-585.82,0.00055616,120]
[325218322,1714593066833,-500.0,0.00055616,120]
[325218323,1714593066850,-3647.57,0.00055616,120]
[325218324,1714593066859,-1066.85,0.00055616,120]
[325218325,1714593066884,-500.0,0.00055616,120]
[325218326,1714593066897,-500.0,0.00055616,120]
[325218327,1714593066915,-548.41,0.00055616,120]
[325218328,1714593066931,-500.0,0.00055616,120]
[325218329,1714593066949,-685.66,0.00055616,120]
[325218330,1714593066959,-500.0,0.00055616,120]
[325218331,1714593066968,-500.0,0.00055616,120]
[325218332,1714593066978,-399.351879,0.00055616,120]
[325218333,1714593066995,-646.75,0.00055616,120]
[325218334,1714593067008,-790.05,0.00055616,120]
[325218335,1714593067017,-496.53007339,0.00055616,120]
[325218336,1714593067041,-399.351879,0.00055616,120]
[325218337,1714593067058,-500.0,0.00055616,120]
[325218338,1714593067074,-512.6,0.00055616,120]
[325218339,1714593067114,-151.0,0.00055616,120]
[325218340,1714593067128,-500.0,0.00055616,120]
[325218341,1714593067138,-500.0,0.00055616,120]
[325218342,1714593067148,-296.01220313,0.00055616,2]
[325218343,1714593067164,-623.92,0.00055616,120]
[325218344,1714593067173,-155.082013,0.00055616,120]
[325218345,1714593067200,-769.53,0.00055616,120]
[325218346,1714593067221,-155.082013,0.00055616,120]
[325218347,1714593067231,-500.0,0.00055616,120]
[325218348,1714593067241,-243.76330396,0.00055616,120]
[325218349,1714593067250,-220.364079,0.00055616,120]
[325218350,1714593067260,-500.0,0.00055616,120]
[325218351,1714593067280,-1300.37,0.00055616,120]
[325218352,1714593067294,-1083.45,0.00055616,120]
[325218353,1714593067327,-511.17,0.00055616,120]
[325218354,1714593067355,-500.0,0.00055616,120]
[325218355,1714593067364,-220.364079,0.00055616,120]
[325218356,1714593067374,-500.0,0.00055616,120]
[325218357,1714593067384,-515.08,0.00055616,120]
[325218358,1714593067395,-500.0,0.00055616,120]
[325218359,1714593067404,-500.0,0.00055616,120]
[325218360,1714593067415,-15563.73,0.00055616,120]
[325218361,1714593067426,-500.0,0.00055616,120]
[325218362,1714593067436,-500.0,0.00055616,120]
[325218363,1714593067446,-945.484392,0.00055616,120]
[325218364,1714593067457,-4919.23,0.00055616,120]
[325218365,1714593067468,-592.33,0.00055616,120]
[325218366,1714593067478,-500.0,0.00055616,120]
[325218367,1714593067488,-500.0,0.00055616,120]
[325218368,1714593067499,-945.484392,0.00055616,120]
[325218369,1714593067508,-175.798414,0.00055616,120]
[325218370,1714593067519,-3268.66,0.00055616,120]
[325218371,1714593067530,-500.0,0.00055616,120]
[325218372,1714593067540,-500.0,0.00055616,120]
[325218373,1714593067551,-175.798414,0.00055616,120]
[325218374,1714593067560,-500.0,0.00055616,120]
[325218375,1714593067573,-1592.82,0.00055616,30]
[325218376,1714593067584,-156.225468,0.00055616,120]
[325218377,1714593067596,-151.0,0.00055616,120]
[325218378,1714593067606,-156.225468,0.00055616,120]
[325218379,1714593067617,-500.0,0.00055616,120]
[325218380,1714593067628,-500.0,0.00055616,120]
[325218381,1714593067638,-873.13,0.00055616,120]
[325218382,1714593067648,-1224.42,0.00055616,120]
[325218383,1714593067659,-2416.17,0.00055616,120]
[325218384,1714593067669,-1202.11,0.00055616,120]
[325218385,1714593067680,-500.0,0.00055616,120]
[325218386,1714593067689,-772.552586,0.00055616,120]
[325218387,1714593067700,-301.78688122,0.00055616,7]
[325218388,1714593067711,-772.552586,0.00055616,120]
[325218389,1714593067721,-500.0,0.00055616,120]
[325218390,1714593067731,-1000.0,0.00055616,120]
[325218391,1714593067743,-1021.63,0.00055616,120]
[325218392,1714593067754,-500.0,0.00055616,120]
[325218393,1714593067765,-787.78,0.00055616,120]
[325218394,1714593067776,-2993.93,0.00055616,120]
[325218395,1714593067787,-500.0,0.00055616,120]
[325218396,1714593067798,-500.0,0.00055616,120]
[325218397,1714593067808,-500.0,0.00055616,120]
[325218398,1714593067820,-1034.59,0.00055616,120]
[325218399,1714593067832,-817.09,0.00055616,120]
[325218400,1714593067842,-500.0,0.00055616,120]
[325218401,1714593067853,-500.0,0.00055616,120]
[325218402,1714593067863,-266.662145,0.00055616,120]
[325218403,1714593067874,-500.0,0.00055616,120]
[325218404,1714593067884,-500.0,0.00055616,120]
[325218405,1714593067895,-1098.49,0.00055616,120]
[325218406,1714593067906,-266.662145,0.00055616,120]
[325218407,1714593067916,-500.0,0.00055616,3]
[325218408,1714593067926,-500.0,0.00055616,120]
[325218409,1714593067935,-500.0,0.00055616,120]
[325218410,1714593067946,-2274.52,0.00055616,120]
[325218411,1714593067956,-500.0,0.00055616,120]
[325218412,1714593067966,-500.0,0.00055616,120]
[325218413,1714593067976,-500.0,0.00055616,120]
[325218414,1714593067987,-527.67,0.00055616,120]
[325218415,1714593068003,-500.0,0.00055616,120]
[325218416,1714593068012,-2156.03,0.00055616,120]
[325218417,1714593068022,-545.43,0.00055616,120]
[325218418,1714593068033,-749.02,0.00055616,120]
[325218419,1714593068046,-412.279401,0.00055616,120]
[325218420,1714593068057,-842.19,0.00055616,120]
[325218421,1714593068067,-669.57,0.00055616,120]
[325218422,1714593068086,-412.279401,0.00055616,120]
[325218423,1714593068100,-151.0,0.00055616,120]
[325218424,1714593068111,-500.0,0.00055616,120]
[325218425,1714593068121,-839.77,0.00055616,120]
[325218426,1714593068131,-500.0,0.00055616,120]
[325218427,1714593068141,-500.0,0.00055616,120]
[325218428,1714593068151,-211.665744,0.00055616,30]
[325218429,1714593068161,-1059.07,0.00055616,120]
[325218430,1714593068171,-1227.58,0.00055616,120]
[325218431,1714593068181,-151.0,0.00055973,120]
[325218432,1714593068192,-151.0,0.00056,120]
[325218433,1714593068202,-157.756584,0.00056,120]
[325218434,1714593068212,-157.756584,0.00056,120]
[325218435,1714593068223,-151.0,0.00056,120]
[325218436,1714593068233,-1500.0,0.00056,120]
[325218437,1714593068243,-500.0,0.00056164,120]
[325218438,1714593068254,-204.36927451,0.00056164,120]
[325218439,1714593068264,-500.0,0.00056164,120]
[325218440,1714593068274,-799.19,0.00056164,120]
[325218441,1714593068284,-540.23816417,0.00056164,120]
[325218442,1714593068293,-500.0,0.00056164,120]
[325218443,1714593068302,-501.74569118,0.00056164,120]
[325218444,1714593068311,-540.71440554,0.00056164,120]
[325218445,1714593068320,-656.09,0.00056164,120]
[325218446,1714593068333,-500.0,0.00056164,120]
[325218447,1714593068343,-600.0,0.00056164,120]
[325218448,1714593068353,-151.0,0.00056164,120]
[325218449,1714593068363,-929.28,0.00056164,120]
[325218450,1714593068373,-500.0,0.00056164,120]
[325218451,1714593068383,-500.0,0.00056164,120]
[325218452,1714593068393,-986.16,0.00056164,120]
[325218453,1714593068404,-932.13,0.00056164,120]
[325218454,1714593068414,-500.0,0.00056164,120]
[325218455,1714593068423,-503.86074697,0.00056164,120]
[325218456,1714593068433,-500.0,0.00056164,5]
[325218457,1714593068442,-635.3,0.00056164,120]
[325218458,1714593068452,-770.08,0.00056164,120]
[325218459,1714593068462,-646.37,0.00056164,120]
[325218460,1714593068471,-707.35,0.00056164,120]
[325218461,1714593068480,-506.52719892,0.00056164,120]
[325218462,1714593068490,-500.0,0.00056164,120]
[325218463,1714593068500,-500.0,0.00056164,120]
[325218464,1714593068510,-811.41,0.00056164,2]
[325218465,1714593068519,-500.0,0.00056164,120]
[325218466,1714593068528,-598.21,0.00056164,120]
[325218467,1714593068537,-500.0,0.00056164,120]
[325218468,1714593068547,-500.0,0.00056164,120]
[325218469,1714593068556,-513.54526185,0.00056164,120]
[325218470,1714593068566,-501.29,0.00056164,120]
[325218471,1714593068580,-500.0,0.00056164,120]
[325218472,1714593068590,-500.0,0.00056164,120]
[325218473,1714593068599,-685.02,0.00056164,120]
[325218474,1714593068608,-814.0,0.00056164,120]
[325218475,1714593068617,-500.0,0.00056164,120]
[325218476,1714593068626,-500.0,0.00056164,120]
[325218477,1714593068635,-500.0,0.00056164,120]
[325218478,1714593068644,-500.0,0.00056164,120]
[325218479,1714593068653,-500.0,0.00056164,120]
[325218480,1714593068663,-479.03621759,0.00056164,30]
[325218481,1714593068673,-548.15,0.00056164,120]
[325218482,1714593068682,-627.76,0.00056164,120]